Cogmind - Beta 13 @@@ ROGUE MODE // 2024.04.15 @ 18:32:10 Player: zoefiri Result: Destroyed by D-53 Grenadier with Mini Grenade Launcher Performance ------------- Evolutions (0) 0 Regions Visited (2) 400 Robots Destroyed (14) 70 Value Destroyed (214) 214 Prototype IDs (0) 0 Alien Tech Used (0) 0 Bonus (0) 0 TOTAL SCORE: 684 Bonus ------- None Cogmind --------- Core Integrity 0/250 Matter 114/300 Energy 90/100 System Corruption 1% Temperature Cool (2) Movement Treading (152) Location -10/Mines Parts ------- > --- POWER (1) -------- (None) > --- PROPULSION (2) --- Light Treads Advanced Treads > --- UTILITY (2) ------ Large Storage Unit > --- WEAPON (2) ------- (None) > --- INVENTORY (15) --- Light Ion Engine Light Treads Aluminum Leg Titanium Leg Wheel Small Storage Unit Medium Storage Unit Hacking Suite Medium Laser Medium Laser Small Laser Field Laser Assault Cannon Grenade Launcher Axe Peak State ------------ > --- POWER ------------ Light Ion Engine > --- PROPULSION ------- Light Treads Advanced Treads > --- UTILITY ---------- Large Storage Unit Propulsion Shielding > --- WEAPON ----------- Heavy Assault Cannon > --- INVENTORY -------- Light Ion Engine Light Treads Aluminum Leg Aluminum Leg Titanium Leg Wheel Small Storage Unit Medium Storage Unit Hacking Suite Medium Laser Medium Laser Small Laser Assault Cannon Grenade Launcher [Rating: 15] Favorites ----------- Power Ion Engine Engine Ion Engine Propulsion Light Treads Treads Light Treads Utility Propulsion Shielding Storage Small Storage Unit Protection Propulsion Shielding Weapon Small Laser Energy Gun Small Laser Ballistic Cannon Heavy Assault Cannon Launcher Grenade Launcher Slashing Weapon Axe Build | -11 -10 -10 ------- Run | Yrd Mat Min Slots Evolved . | . . . Power . | . . . Propulsion . | . . . Utility . | . . . Weapon . | . . . Parts Attached 22 | 5 12 5 Power 3 | 2 1 . Engine 3 | 2 1 . Core . | . . . Reactor . | . . . Propulsion 3 | . 2 1 Treads 3 | . 2 1 Leg . | . . . Wheel . | . . . Hover . | . . . Flight . | . . . Utility 7 | 1 6 . Device . | . . . Storage 5 | 1 4 . Processor . | . . . Hackware . | . . . Protection 2 | . 2 . Artifact . | . . . Weapon 9 | 2 3 4 Energy Gun 5 | 2 3 . Energy Cannon . | . . . Ballistic Gun . | . . . Ballistic Cannon 2 | . . 2 Launcher 1 | . . 1 Special Weapon . | . . . Impact Weapon . | . . . Slashing Weapon 1 | . . 1 Piercing Weapon . | . . . Special Melee Weapon . | . . . Unidentified Prototypes . | . . . Parts Lost 2 | . . 2 Power 1 | . . 1 Propulsion . | . . . Utility 1 | . . 1 Weapon . | . . . Highest Loss Streak 2 | . . 2 To Critical Strikes . | . . . Average Slot Usage (%) 85 | . 85 87 Engine 13 | . 13 14 Treads 21 | . 20 28 Storage 14 | . 14 14 Protection 8 | . 7 12 Energy Gun 24 | . 27 8 Ballistic Cannon 1 | . . 8 Naked Turns . | . . . Heaviest Build 36 | 13 27 36 Greatest Support 42 | 3 40 42 Greatest Overweight (x) 4 | 4 4 . Average Overweight (x) . | 3 . . Largest Inventory Capacity 15 | 8 15 15 Average Capacity 10 | 7 9 15 Most Carried 15 | 8 12 15 Average Carried 9 | 5 8 13 Final Capacity 15 | 8 15 15 Final Carried 15 | 8 11 15 Class Distribution -------------------- 100% | Mutant Dominant Class ---------------- Mutant | -10/Materials Mutant | -10/Mines Resources | -11 -10 -10 ----------- Run | Yrd Mat Min Matter Collected 274 | 104 153 17 Remotely . | . . . Salvage Created 360 | . 329 31 Parts 19 | . 18 1 Haulers Intercepted 2 | . 2 . Recyclers Shooed 1 | . 1 . Parts Field Recycled . | . . . Retrieved Matter . | . . . Parts Self-Destructed . | . . . Prevented . | . . . Kills | -11 -10 -10 ------- Run | Yrd Mat Min Combat Hostiles Destroyed 12 | . 8 4 Melee 2 | . . 2 Guns 8 | . 8 . Cannons 1 | . . 1 AOE 1 | . . 1 Classes Destroyed 6 | . 5 1 Hauler 2 | . 2 . Operator 1 | . 1 . Watcher 2 | . 2 . Swarmer 6 | . 5 1 Grunt 3 | . 3 . Assembled 3 | . . 3 Best Kill Streak 4 | . 4 3 Combat Bots Only 4 | . 4 3 Max Kills in Single Turn 1 | . 1 1 Gunslinging . | . . . Exploded 1 | . . 1 Melee 1 | . . 1 Uniques/NPCs Destroyed . | . . . Combat | -11 -10 -10 -------- Run | Yrd Mat Min Hostile Shots Fired 90 | . 39 51 Missed 24 | . 12 12 Damage Taken 945 | . 258 687 Core 262 | . 62 200 Absorbed by Shields . | . . . Redirected to Shielding 53 | . 15 38 Core Remaining (%) 100 | 100 . . Volleys Fired 59 | . 53 6 Largest 2 | . 2 1 Hottest 90 | . 90 60 Shots Fired 113 | . 107 6 Gun 107 | . 107 . Cannon 4 | . . 4 Launcher 2 | . . 2 Special . | . . . Kinetic 4 | . . 4 Thermal 99 | . 99 . Explosive 2 | . . 2 Electromagnetic 8 | . 8 . Robot Hit Streak 8 | . 8 3 Robot Miss Streak 5 | . 5 3 Penetration Max . | . . . Secondary Targets . | . . . Shots Hit Robots 63 | . 59 4 Core Hits 24 | . 20 4 Critical Kills . | . . . Critical Parts Destroyed . | . . . Critical Strikes 3 | . 3 . Burn 3 | . 3 . Melee Attacks 2 | . . 2 Impact . | . . . Slashing 2 | . . 2 Piercing . | . . . Sneak Attacks . | . . . Combat Hostiles . | . . . Follow-up Attacks . | . . . Damage Inflicted 925 | . 721 204 Guns 715 | . 715 . Cannons 47 | . . 47 Explosions 72 | . . 72 Melee 85 | . . 85 Ramming 6 | . 6 . Kinetic 47 | . . 47 Thermal 659 | . 659 . Explosive 72 | . . 72 Electromagnetic 56 | . 56 . Impact . | . . . Slashing 85 | . . 85 Piercing . | . . . Highest Corruption 1 | . 1 1 Average Corruption 1 | . 1 1 Corruption Purged . | . . . Corruption Blocked . | . . . Effects 10 | . 7 3 Message Errors 4 | . 3 1 Matter Fused 2 | . 1 1 Data Loss (minor) 3 | . 2 1 Misfires 1 | . 1 . Overload Shots . | . . . Overflow Damage . | . . . Projectiles . | . . . Explosions . | . . . Melee . | . . . Knockbacks . | . . . Impact . | . . . Kinetic . | . . . Secondary . | . . . Self-Inflicted Damage 1 | . 1 . Shots . | . . . Rammed 3 | . 3 . Targets Rammed 3 | . 3 . Kicked . | . . . Crushed . | . . . Highest Temperature 396 | . 396 120 Average Temperature 74 | . 74 72 Received Heat Transfer 198 | . 78 120 Effects 1 | . 1 . Shutdowns 1 | . 1 . Siege Activations . | . . . Robots Corrupted . | . . . Combat Hostiles . | . . . Parts Fried . | . . . Impact Corruptions . | . . . Robots Melted . | . . . Combat Hostiles . | . . . Parts Melted 6 | . 6 . Heat Transferred 1910 | . 1910 . Parts Sabotaged . | . . . Parts Stolen . | . . . Parts Stripped . | . . . Power Chain Reactions . | . . . Alert | -11 -10 -10 ------- Run | Yrd Mat Min Peak Influence 245 | . 245 34 Initial 4 | . . 4 Average 49 | . 63 6 Maximum Alert Level 1 | . 1 . Low Security (%) 93 | 100 91 100 Level 1 6 | . 8 . Level 2 . | . . . Level 3 . | . . . Level 4 . | . . . Level 5 . | . . . High Security . | . . . Max Security . | . . . Squads Dispatched 2 | . 1 1 Investigation 1 | . . 1 Extermination . | . . . Reinforcement 1 | . 1 . Assault . | . . . Garrison . | . . . Intercept . | . . . Searches Triggered . | . . . Construction Impeded . | . . . Haulers Reinforced . | . . . Active Scanning Responses . | . . . Cargo Convoy Interrupts . | . . . Stealth | -11 -10 -10 --------- Run | Yrd Mat Min Distress Signals 1 | . 1 . Communications Jammed . | . . . Distress Signals . | . . . Times Spotted 31 | . 18 13 Peak Tracking Total 9 | . 3 9 Tactical Retreats 1 | . 1 . Traps | -11 -10 -10 ------- Run | Yrd Mat Min Traps Triggered . | . . . Indirectly . | . . . Trap Hack Attempts . | . . . Triggered . | . . . Disarmed . | . . . Reprogrammed . | . . . Reused . | . . . Traps Extracted . | . . . Installed . | . . . Triggered . | . . . Machines | -11 -10 -10 ---------- Run | Yrd Mat Min Machines Disabled . | . . . Max in Single Turn . | . . . Machines Repaired . | . . . Machines Dismantled . | . . . Machines Sabotaged . | . . . Overloaded Fab Kills . | . . . Hacking | -11 -10 -10 --------- Run | Yrd Mat Min Machines Accessed 1 | . . 1 Terminals . | . . . Fabricators . | . . . Repair Stations . | . . . Recycling Units . | . . . Scanalyzers . | . . . Garrison Access . | . . . Total Hacks 1 | . . 1 Successful 1 | . . 1 Failed . | . . . Catastrophic . | . . . Database Lockouts . | . . . Manual . | . . . Terminals . | . . . Fabricators . | . . . Repair Stations . | . . . Recycling Units . | . . . Scanalyzers . | . . . Garrison Access . | . . . Terminal Hacks 1 | . . 1 Open Door 1 | . . 1 Fabricator Hacks . | . . . Repair Station Hacks . | . . . Recycling Unit Hacks . | . . . Scanalyzer . | . . . Garrison Access Hacks . | . . . Unauthorized Hacks . | . . . Terminals . | . . . Fabricators . | . . . Repair Stations . | . . . Recycling Units . | . . . Scanalyzers . | . . . Garrison Access . | . . . Data Cores Recovered . | . . . Used . | . . . Hacking Detections . | . . . Full Trace Events . | . . . Feedback Events . | . . . Feedback Blocked . | . . . Robot Schematics Acquired . | . . . Robots Built . | . . . Authchips . | . . . Time . | . . . Total Robot Build Rating . | . . . Part Schematics Acquired . | . . . Parts Built . | . . . Authchips . | . . . Time . | . . . Total Part Build Rating . | . . . Parts Repaired . | . . . Time . | . . . Parts Recycled . | . . . Recycled Matter . | . . . Retrieved Matter . | . . . Retrieved Components . | . . . Parts Scanalyzed . | . . . Part Schematics Acquired . | . . . Parts Damaged . | . . . Bothacking | -11 -10 -10 ------------ Run | Yrd Mat Min Used RIF Installer . | . . . Robots Hacked . | . . . Non-combat . | . . . Combat . | . . . Robot Hacks Applied . | . . . Relay Couplers Released . | . . . Fabnet Peak Effective % . | . . . Robots Rewired . | . . . Allies Hacked . | . . . Hacks Repelled . | . . . Allies | -11 -10 -10 -------- Run | Yrd Mat Min Total Allies . | . . . Largest Group . | . . . Highest-Rated Group . | . . . Highest-Rated Ally . | . . . Total Orders . | . . . Ally Attacks . | . . . Total Damage . | . . . Kills . | . . . Allies Corrupted . | . . . Allies Melted . | . . . Intel | -11 -10 -10 ------- Run | Yrd Mat Min Robot Analysis Total . | . . . Derelict Logs Recovered . | . . . Drone Launches . | . . . Drone Recoveries . | . . . Exploration | -11 -10 -10 ------------- Run | Yrd Mat Min Turns Passed 1427 | 134 1082 211 Spaces Moved 670 | 54 501 115 Core 151 | 54 97 . Treads 519 | . 404 115 Legs . | . . . Wheels . | . . . Hover . | . . . Flight . | . . . Fastest Speed 50 | 50 160 152 Average Speed 177 | 225 177 154 Slowest Speed 250 | 250 250 160 Overloaded Moves . | . . . Propulsion Burnouts . | . . . Robots Hopped . | . . . Cave-ins Triggered . | . . . Exploration Rate (%) 27 | 5 47 30 Regions Visited 2 Branch Regions 1 Pre-discovered Areas . | . . . Known Exits Taken . | . . . Unknown Exits Taken 2 | 1 1 . Scrap Searched . | . . . Spaces Dug . | . . . Terrain Destroyed 17 | . . 17 Melee . | . . . Projectile 3 | . . 3 AOE 14 | . . 14 Terrain Rammed . | . . . Walls Destroyed . | . . . Machines Disabled . | . . . Actions | -11 -10 -10 --------- Run | Yrd Mat Min Total 795 | 65 589 141 Wait 3 | . 3 . Move 668 | 53 500 115 Hop . | . . . Pick Up 17 | 7 7 3 Fast Attach 13 | 4 6 3 Attach 6 | . 4 2 Detach 8 | . 2 6 Swap 3 | 1 2 . Drop 13 | . 9 4 Fire 59 | . 53 6 Melee 2 | . . 2 Ram 1 | . 1 . Kick . | . . . Crush 2 | . 2 . Escape Stasis . | . . . Rewire . | . . . Trap . | . . . Miscellaneous . | . . . Route ------- -11/Scrapyard -10/Materials (discovered 2 exits: [*Mat] / *Min) -10/Mines History --------- Turn | Location | Event 32 | -11/Scrapyard | Discovered new exit (range 14) 135 | -11/Scrapyard | Entered Materials 303 | -10/Materials | Build established: Mutant 512 | -10/Materials | Discovered new exit (range 8) 1119 | -10/Materials | Discovered new exit (range 12) 1217 | -10/Materials | Entered Mines 1265 | -10/Mines | Met a Derelict bent on vengeance 1266 | -10/Mines | Met a Derelict shopkeep closing up shop 1367 | -10/Mines | Assembled infested the area 1414 | -10/Mines | Core integrity fell below 50% 1423 | -10/Mines | Core integrity fell below 20% 1428 | -10/Mines | Destroyed by D-53 Grenadier with Mini Grenade Launcher Last Messages --------------- K-01 Serf collects debris. HJTH>7& 4L/91IVA:DSQ5DE5GWGZ,PEV&V 1= PK-OU9(g): "WHERE ARE YOU, UNAWARE TRASH?! VENGEANCE UPON YOU!" K-01 Serf collects debris. System corrupted: Matter fused (-5). K-01 Serf collects debris. ALERT: Infestation in the mines, dispatching Demolisher response squad. as-23233 destroyed. System corrupted: Component data lost. Dropped Hvy. Assault Cannon. Propulsion Shielding destroyed. S-10 Pest destroyed. as-30174 destroyed. as-88138 destroyed. S-10 Pest destroyed. Acquired 12 matter. Acquired 5 matter. Lgt. Ion Engine destroyed. Map ----- +----------------------------------------------------+ | ?????????????????????????????????????????????????? | | ?????????????????????????????????????????????????? | | ?????????????????????????????????????????????????? | | ?????????????????????????????????????????????????? | | ?????????????????????????????????????????????????? | | ?????????????????????????????????????????????????? | | ?????????????????????????????????????????????????? | | ?????????????????????????????????????????????????? | | ?????????????????????????????????????????????????? | | ####?????????????????????????????????????????????? | | """##????????????????????????????????????????????? | | ="#????????????????????????????????????????????? | | [["#??????? ????????????????????????????????????? | | ##??????? ????????????????????????????????????? | | ###??????? ????????????????????????????????????? | | X #??????? ????????????????????????????????????? | | ###????? ????????????????????????????????????? | | #### ###??? ????????????????????????????????????? | | #??? ????????????????????????????????????? | | ##??# #?????###???????????????????????????? | | #######???# #?????? ####??????????????##???????? | | ##?????????# #??????? ???##??????? ##??????? | | #??????????# #????????# #### ####?? ##?????? | | ###????????# #????????# # # s ????? | | #????????# #???????### a ????? | | #????????# #???????# ]@ [ ""?????? | | #????????# ## # ""?????? | | #????#### # ##########????????????? | | #???## #?????????????????????? | | ##### % d #?????????????????????? | | ## # #?????????????????????? | | % ###?????????????????????? | | # #????????????????????????? | | ###### ?????????????????????????? | | ??????# #?????????????????????????? | | ## #?????# #?????????????????????????? | | #### #???# #?????????????????????????? | | #??# #??# #?????????????????????????? | | ??# #??# #?????????????????????????? | | ? ##??#=%?????????????????????????? | | ### ? #####???? #?????????????????????????? | | ??## ##???????? ??????????????????????????? | | ???## ##????????? ??????????????????????????? | | ?????# ##?????????? ??????????????????????????? | | ?????? ? #??????????? ??????????????????????????? | | ?????? ? ???????????? ??????????????????????????? | | ???????? ????????????#??????????????????????????? | | ?????????????????????????????????????????????????? | | ?????????????????????????????????????????????????? | | ?????????????????????????????????????????????????? | +----------------------------------------------------+ Best States ------------- Heat Dissipation 25 Energy Generation 10 Energy Capacity 250 Matter Stores 241 Matter Capacity 300 Sight Range 16 Terrain Scan Density 10 Propulsion Shielding 33 Evasion (%) 40 Recoil Reduction 2 Item Schematics ----------------- None Robot Schematics ------------------ None Fabricated ------------ Nothing Alien Tech Used ----------------- None Achievements -------------- None Challenges ------------ None Game ------ Seed MeleeMetafieldKit Manual? 0 Play Time 00:11:47 Cumulative 12.5 hours Start 2024.04.15 @ 18:23:12 End 2024.04.15 @ 18:32:10 Sessions 1 Manual Loads 0 Difficulty Rogue Special Mode None Game No. 21 Rogue 18 Adventurer 0 Explorer 3 Win Type - Total 0 Types 0/0/0/0/0/0/0/0/0 Lore% 13 Gallery% 22 Achievement% 19 Wizard Run 0 Options --------- Layout 1 ASCII 0 Keyboard 0 Movement Arrows Keybinds 0 Fullscreen 0 Font 28/SmallcapsGlow Map View 50x43 Zoom Use 0% Tactical HUD 0 Map Filters NONE Filters NONE Steam 1 RUN: ec73b76d-bd47-4852-ae60-b7a9a704972b